Cogmind - Beta 16.1 @@@ ROGUE MODE // 2026.04.20 @ 21:21:49 Player: Dosh Result: Destroyed by Y-45 Defender with Heavy Assault Rifle Performance ------------- Evolutions (0) 0 Regions Visited (2) 400 Robots Destroyed (20) 100 Value Destroyed (465) 465 Prototype IDs (2) 40 Alien Tech Used (0) 0 Bonus (0) 0 TOTAL SCORE: 1005 Bonus ------- None Cogmind --------- Core Integrity 0/250 Matter 300/300 Energy 179/200 System Corruption 0% Temperature Cool (9) Movement Core (850) Ox16 Location -10/Subcaves Parts ------- > --- POWER (1) -------- Subdweller Power Source > --- PROPULSION (2) --- Light Treads Subdweller Monowheel > --- UTILITY (2) ------ High-capacity Storage Unit Core Shielding > --- WEAPON (2) ------- Subdweller Laser > --- INVENTORY (20) --- Ion Engine Light Ion Engine Light Ion Engine Light Ion Engine Subdweller Monowheel Small Storage Unit Huge Storage Unit Scrap Shield Small Laser Light Assault Rifle Light Assault Rifle Subdweller Machine Gun Battle Cannon Grenade Launcher Subdweller Shrapnel Launcher Peak State ------------ > --- POWER ------------ Makeshift Power Source > --- PROPULSION ------- Light Treads Wheel > --- UTILITY ---------- High-capacity Storage Unit Core Shielding > --- WEAPON ----------- Subdweller Laser Subdweller Laser > --- INVENTORY -------- Ion Engine Light Ion Engine Light Ion Engine Light Ion Engine Subdweller Monowheel Subdweller Monowheel Small Storage Unit Huge Storage Unit Small Laser Light Assault Rifle Light Assault Rifle Subdweller Machine Gun Grenade Launcher Subdweller Shrapnel Launcher [Rating: 13] Favorites ----------- Power Ion Engine Engine Ion Engine Propulsion Light Treads Treads Light Treads Wheel Subdweller Monowheel Utility Core Shielding Storage High-capacity Storage Unit Protection Core Shielding Weapon Light Assault Rifle Energy Gun Subdweller Laser Ballistic Gun Light Assault Rifle Launcher Grenade Launcher Build | -11 -10 -10 ------- Run | Yrd Mat Sub Slots Evolved . | . . . Power . | . . . Propulsion . | . . . Utility . | . . . Weapon . | . . . Parts Attached 24 | 6 4 14 Power 3 | 1 . 2 Engine 3 | 1 . 2 Core . | . . . Reactor . | . . . Propulsion 7 | 2 1 4 Treads 4 | 2 1 1 Leg . | . . . Wheel 3 | . . 3 Hover . | . . . Flight . | . . . Utility 4 | 1 3 . Device . | . . . Storage 3 | 1 2 . Processor . | . . . Hackware . | . . . Protection 1 | . 1 . Artifact . | . . . Weapon 10 | 2 . 8 Energy Gun 3 | . . 3 Energy Cannon . | . . . Ballistic Gun 5 | 2 . 3 Ballistic Cannon . | . . . Launcher 2 | . . 2 Special Weapon . | . . . Impact Weapon . | . . . Slashing Weapon . | . . . Piercing Weapon . | . . . Special Melee Weapon . | . . . Unidentified Prototypes . | . . . Parts Lost 9 | . 1 8 Power 1 | . . 1 Propulsion 4 | . 1 3 Utility . | . . . Weapon 4 | . . 4 Highest Loss Streak 4 | . 1 4 To Critical Strikes . | . . . Average Backups 9 | 1 6 12 Power 2 | . 1 3 Propulsion 1 | . . 1 Utility 1 | . 1 2 Weapon 4 | . 3 5 Tool/Special . | . . . Unused Backups 5 | . . 5 Power 3 | . . 3 Propulsion . | . . . Utility . | . . . Weapon 2 | . . 2 Tool/Special . | . . . Average Slot Usage (%) 93 | . 86 99 Engine 13 | . 14 13 Treads 20 | . 26 14 Wheel 6 | . . 13 Storage 14 | . 14 14 Protection 10 | . 6 14 Energy Gun 10 | . . 19 Ballistic Gun 14 | . 23 5 Launcher 1 | . . 2 Peak Build Rating 13 | 6 7 13 Average Rating 8 | 4 6 10 On Entrance 4 | . 6 7 Avg Prop Armor Cover (%) 14 | . . 14 Naked Turns . | . . . Heaviest Build 88 | 12 88 57 Greatest Support 40 | 40 40 40 Greatest Overweight (x) 17 | 3 4 17 Average Overweight (x) 1 | . . 2 Largest Inventory Capacity 25 | 8 25 20 Average Capacity 16 | 7 12 20 Most Carried 16 | 2 11 16 Average Carried 9 | 1 6 12 Final Capacity 20 | 8 20 20 Final Carried 16 | 2 9 16 Class Distribution -------------------- 83% | Mutant 16% | Scavenger-Mutant Dominant Class ---------------- Mutant | -10/Materials Mutant | -10/Subcaves Resources | -11 -10 -10 ----------- Run | Yrd Mat Sub Matter Collected 704 | 191 163 350 Remotely . | . . . Salvage Created 533 | . 235 298 Parts 41 | . 26 15 Haulers Intercepted 1 | . 1 . Recyclers Shooed . | . . . Parts Field Recycled . | . . . Retrieved Matter . | . . . Parts Self-Destructed 3 | . . 3 Prevented . | . . . Parts Restored . | . . . Kills | -11 -10 -10 ------- Run | Yrd Mat Sub Combat Hostiles Destroyed 16 | . 6 10 Guns 12 | . 6 6 AOE 4 | . . 4 Classes Destroyed 6 | . 4 2 Hauler 1 | . 1 . Turret 1 | . . 1 Watcher 2 | . 2 . Swarmer 8 | . 4 4 Grunt 2 | . 2 . Subdweller 6 | . . 6 Best Kill Streak 5 | . 3 5 Combat Bots Only 4 | . 3 4 Max Kills in Single Turn 2 | . 1 2 Gunslinging . | . . . Exploded 2 | . . 2 Melee . | . . . Uniques/NPCs Destroyed . | . . . Combat | -11 -10 -10 -------- Run | Yrd Mat Sub Hostile Shots Fired 110 | . 30 80 Missed 31 | . 3 28 Hits 79 | . 27 52 Projectile 79 | . 27 52 Critical Strikes 1 | . 1 . Damage Taken 1335 | . 380 955 Core 258 | . 96 162 Absorbed by Shields . | . . . Redirected to Shielding 34 | . . 34 Core Remaining (%) 100 | 100 . . Volleys Fired 77 | . 38 39 Largest 2 | . 2 2 Hottest 120 | . 40 120 Shots Fired 148 | . 76 72 Gun 139 | . 76 63 Cannon . | . . . Launcher 9 | . . 9 Special . | . . . Kinetic 102 | . 76 26 Thermal 40 | . . 40 Explosive 6 | . . 6 Electromagnetic . | . . . Robot Hit Streak 14 | . 8 14 Robot Miss Streak 3 | . 3 1 Penetration Max . | . . . Secondary Targets 3 | . 2 1 Max Gunslinging Chain 1 | . 1 1 Shots Hit Robots 89 | . 46 43 Core Hits 38 | . 18 20 Critical Kills 3 | . 2 1 Critical Parts Destroyed . | . . . Critical Strikes 3 | . 2 1 Destroy 3 | . 2 1 Melee Attacks . | . . . Impact . | . . . Slashing . | . . . Piercing . | . . . Sneak Attacks . | . . . Combat Hostiles . | . . . Follow-up Attacks . | . . . Damage Inflicted 1396 | 16 400 980 Guns 1024 | . 389 635 Cannons . | . . . Explosions 345 | . . 345 Melee . | . . . Ramming 27 | 16 11 . Kinetic 877 | . 389 488 Thermal 492 | . . 492 Explosive . | . . . Electromagnetic . | . . . Impact . | . . . Slashing . | . . . Piercing . | . . . Highest Corruption . | . . . Average Corruption . | . . . Corruption Purged . | . . . Corruption Blocked . | . . . Overload Shots . | . . . Overflow Damage 17 | . . 17 Projectiles . | . . . Explosions 17 | . . 17 Melee . | . . . Knockbacks . | . . . Impact . | . . . Kinetic . | . . . Secondary . | . . . Self-Inflicted Damage 40 | . . 40 Shots 4 | . . 4 Rammed 8 | 3 5 . Targets Rammed 8 | 3 5 . Kicked . | . . . Crushed . | . . . Highest Temperature 37 | . 36 37 Average Temperature 15 | . 16 14 Received Heat Transfer 417 | . 171 246 Siege Activations . | . . . Martial Activations . | . . . Shielding Activations . | . . . Robots Disrupted . | . . . Combat Hostiles . | . . . Robots Corrupted . | . . . Combat Hostiles . | . . . Parts Fried . | . . . Impact Corruptions . | . . . Robots Melted . | . . . Combat Hostiles . | . . . Parts Melted 1 | . . 1 Heat Transferred 600 | . . 600 Parts Sabotaged . | . . . Parts Stolen . | . . . Parts Stripped . | . . . Power Chain Reactions . | . . . Alert | -11 -10 -10 ------- Run | Yrd Mat Sub Maximum Alert Level . | . . . Low Security (%) 100 | 100 100 . Level 1 . | . . . Level 2 . | . . . Level 3 . | . . . Level 4 . | . . . Level 5 . | . . . High Security . | . . . Max Security . | . . . Peak Influence 74 | . 74 . Initial . | . . . Average 7 | . 8 . Influence Increases 343 | . 213 130 Destroy 0b10 Robot/C 220 | . 120 100 Destroy 0b10 Robot/NC 15 | . 15 . Destroy Leader 26 | . 26 . Successful Hack 37 | . 37 . Lose Combat Pursuer 45 | . 15 30 Influence Decreases 343 | . 213 130 Time Decay 336 | . 213 123 Lost Part 7 | . . 7 Squads Dispatched . | . . . Investigation . | . . . Extermination . | . . . Reinforcement . | . . . Assault . | . . . Garrison . | . . . Intercept . | . . . Searches Triggered . | . . . Construction Impeded . | . . . Haulers Reinforced . | . . . Active Scanning Responses . | . . . Cargo Convoy Interrupts . | . . . Stealth | -11 -10 -10 --------- Run | Yrd Mat Sub Distress Signals 1 | . 1 . Communications Jammed . | . . . Distress Signals . | . . . Times Spotted 33 | . 18 15 Peak Tracking Total 6 | . 3 6 Tactical Retreats 3 | . 1 2 Traps | -11 -10 -10 ------- Run | Yrd Mat Sub Traps Triggered 3 | . 3 . Indirectly . | . . . Trap Hack Attempts . | . . . Triggered . | . . . Disarmed . | . . . Reprogrammed . | . . . Reused . | . . . Traps Extracted . | . . . Installed . | . . . Triggered . | . . . Machines | -11 -10 -10 ---------- Run | Yrd Mat Sub Machines Disabled 3 | . . 3 Max in Single Turn 3 | . . 3 Machines Repaired . | . . . Machines Dismantled . | . . . Machines Sabotaged . | . . . Overloaded Fab Kills . | . . . Hacking | -11 -10 -10 --------- Run | Yrd Mat Sub Machines Accessed 6 | . 6 . Terminals 5 | . 5 . Fabricators . | . . . Repair Stations 1 | . 1 . Recycling Units . | . . . Scanalyzers . | . . . Garrison Access . | . . . Total Hacks 17 | . 17 . Successful 9 | . 9 . Failed 8 | . 8 . Catastrophic 1 | . 1 . Database Lockouts . | . . . Manual 7 | . 7 . Terminals 16 | . 16 . Fabricators . | . . . Repair Stations 1 | . 1 . Recycling Units . | . . . Scanalyzers . | . . . Garrison Access . | . . . Terminal Hacks 9 | . 9 . Robot Schematic 1 | . 1 . Robot Analysis 3 | . 3 . Prototype ID Bank 2 | . 2 . Locate Traps 1 | . 1 . Zone Layout 2 | . 2 . Fabricator Hacks . | . . . Repair Station Hacks . | . . . Recycling Unit Hacks . | . . . Scanalyzer . | . . . Garrison Access Hacks . | . . . Unauthorized Hacks . | . . . Terminals . | . . . Fabricators . | . . . Repair Stations . | . . . Recycling Units . | . . . Scanalyzers . | . . . Garrison Access . | . . . Data Cores Recovered . | . . . Used . | . . . Hacking Detections 5 | . 5 . Full Trace Events 1 | . 1 . Feedback Events . | . . . Feedback Blocked . | . . . Robot Schematics Acquired 1 | . 1 . Robots Built . | . . . Authchips . | . . . Time . | . . . Total Robot Build Rating . | . . . Part Schematics Acquired . | . . . Parts Built . | . . . Authchips . | . . . Time . | . . . Total Part Build Rating . | . . . Part Studies Acquired . | . . . Parts Repaired . | . . . Time . | . . . Parts Recycled . | . . . Recycled Matter . | . . . Retrieved Matter . | . . . Retrieved Components . | . . . Parts Scanalyzed . | . . . Part Schematics Acquired . | . . . Parts Damaged . | . . . Bothacking | -11 -10 -10 ------------ Run | Yrd Mat Sub Used RIF Installer . | . . . Robots Hacked . | . . . Non-combat . | . . . Combat . | . . . Robot Hacks Applied . | . . . Relay Couplers Released . | . . . Fabnet Peak Effective % . | . . . Robots Rewired . | . . . Allies Hacked . | . . . Hacks Repelled . | . . . Allies | -11 -10 -10 -------- Run | Yrd Mat Sub Total Allies . | . . . Largest Group . | . . . Highest-Rated Group . | . . . Highest-Rated Ally . | . . . Total Orders . | . . . Ally Attacks . | . . . Total Damage . | . . . Kills . | . . . Allies Corrupted . | . . . Allies Melted . | . . . Intel | -11 -10 -10 ------- Run | Yrd Mat Sub Active Infowar (turns) . | . . . Robot Analysis Total 3 | . 3 . Derelict Logs Recovered 1 | . . 1 Drone Launches . | . . . Drone Recoveries . | . . . Exploration | -11 -10 -10 ------------- Run | Yrd Mat Sub Turns Passed 3497 | 111 1639 1747 Spaces Moved 1948 | 62 758 1128 Core 7 | 6 . 1 Treads 829 | 56 758 15 Legs . | . . . Wheels 1112 | . . 1112 Hover . | . . . Flight . | . . . Fastest Speed 50 | 50 160 130 Average Speed 159 | 155 188 140 Slowest Speed 900 | 200 480 900 Overloaded Moves . | . . . Propulsion Burnouts . | . . . Robots Hopped . | . . . Potential Cave-ins . | . . . Cave-ins Triggered . | . . . Exploration Rate (%) 58 | 3 97 74 Regions Visited 2 Branch Regions 1 Pre-discovered Areas 1 | . . 1 Known Exits Taken . | . . . Unknown Exits Taken 2 | 1 1 . Scrap Searched 3 | . . 3 Spaces Dug . | . . . Terrain Destroyed 66 | . . 66 Melee . | . . . Projectile . | . . . AOE 66 | . . 66 Terrain Rammed . | . . . Walls Destroyed . | . . . Machines Disabled . | . . . Actions | -11 -10 -10 --------- Run | Yrd Mat Sub Total 2191 | 72 896 1223 Wait 105 | . 77 28 Move 1947 | 62 757 1128 Hop . | . . . Pick Up 21 | 2 10 9 Fast Attach 11 | 6 4 1 Attach 9 | . 3 6 Detach . | . . . Swap 14 | . 2 12 Drop . | . . . Fire 77 | . 38 39 Melee . | . . . Ram . | . . . Kick . | . . . Crush 7 | 2 5 . Escape Stasis . | . . . Rewire . | . . . Trap . | . . . Miscellaneous . | . . . Route ------- -11/Scrapyard -10/Materials (discovered 5 exits: [*Mat x3] / [*Min] / [*Sub]) -10/Subcaves (discovered 3 exits: [*Mat x2] / [*Rec]) History --------- Turn | Location | Event 31 | -11/Scrapyard | Discovered new exit (range 14) 112 | -11/Scrapyard | Entered Materials 262 | -10/Materials | Discovered new exit (range 16) 303 | -10/Materials | Build established: Mutant 546 | -10/Materials | Discovered new exit (range 5) 747 | -10/Materials | Discovered new exit (range 12) 806 | -10/Materials | Discovered new exit (range 3) 1725 | -10/Materials | Discovered new exit (range 10) 1751 | -10/Materials | Entered Subcaves 1752 | -10/Subcaves | Approached by a straggling Scientist 1755 | -10/Subcaves | Ambushed by Subdwellers from Twisted Machinery 1819 | -10/Subcaves | Core integrity fell below 50% 1851 | -10/Subcaves | Lost 4 parts (2n2w) 2020 | -10/Subcaves | A swath of the cavern ceiling suddenly collapsed 2099 | -10/Subcaves | Build established: Scavenger-Mutant 2386 | -10/Subcaves | Discovered new exit (range 13) 2388 | -10/Subcaves | Shifting Twisted Machinery released Sub. Laser 2405 | -10/Subcaves | Shifting Twisted Machinery released Sub. Shrapnel Launcher 2530 | -10/Subcaves | Discovered new exit (range 15) 2604 | -10/Subcaves | Build established: Mutant 2729 | -10/Subcaves | Discovered new exit (range 9) 2730 | -10/Subcaves | Learned location of Zion (-6) 2730 | -10/Subcaves | Met a Zionite searching for "candidates" 3317 | -10/Subcaves | Disturbed a concealed Subdweller 3321 | -10/Subcaves | Core integrity fell below 20% 3498 | -10/Subcaves | Destroyed by Y-45 Defender with Heavy Assault Rifle Last Messages --------------- 03326_ Sub. Optics melted. 03326_ RH-6N7(R) destroyed. 03330_ Acquired 22 matter. 03331_ Searching scrap... 03331_ Found Shrapnel Trap. 03331_ Found 35 Matter. 03333_ Searching scrap... 03333_ Found Sub. Laser. 03333_ Found Battle Cannon. 03333_ Found 62 Matter. 03335_ Acquired Battle Cannon. 03339_ Acquired 10 matter. 03373_ Sub. Laser destroyed. 03387_ Subatomizers dissect the Sub. Laser. 03454_ LC-PM9(R) destroyed. 03457_ Acquired 10 matter. 03459_ Acquired Scrap Shield. 03472_ Acquired 10 matter. 03487_ Sub. Monowheel shoots sparks and powers down. 03498_ Sub. Laser destroyed. Map ----- +----------------------------------------------------+ | ???###% ##?# ### ##### | | ??###[%###?# ## ## ##???# | | ??# ## # ### ### ## ## #????? | | ??## " " ## ### #### ### #####? | | ???# ## ## #?## #### "## | | ???# #### ### ### # | | ???# ### ##??# ### | | ???# #?# ###???# #?## """ | | ???# ### ######??# ??# ## "## | | ???## ## ## #??## #?## ### ###? | | ????### ## #????## #??# ### ##?## | | ?????# ## #?????# #??# #### | | ????# ## ###?????####??# | | ????## ### #?????????????# "" | | ?????### ### ###?????????###?## #### # | | ???????#### ##????????#### ##?## ##??#### | | ??????????## #????????## #### #??????? | | ??????????# #????????# ## #??????? | | ??????????## #????????# % #####??? | | ???????????# #????????### ##! ##?? | | ???????????# #??????????## ## #?? | | ???????????# ???????##??### ##? | | ???????????# ??????## ##### ## | | ??????????? ?????## ## # # | | ????????? #### ## | | ????????? Y @ ### | | ?????????# ### #?# # # | | ?????????# #?## #### ## # | | ?????????? #??### !## ### # | | ?????????? ## ##????### & & = ##?##### | | ??????????? ?########????????### # ##?????? | | ??????????????????????????????????##### ###???? | | ???????????????????????????????????### ##??? | | ???????????????????????????????????# #??? | | ???????????????????????????????????# < #?## | | ???????????????????????????????????# #####?# | | ???????????????????????????????????# ###????## | | ???????????????????????????????????# #?????# | | ???????????????????????????????????# ##?????# | | ???????????????????????????????????### #?###?# | | ????????????????????????????????????# ### ### | | ????????????????????????????????????# | | ######??????????????????????????????# | | #??????????????????????????????### # ## | | #???????????????????####?????????######## | | #???????????????????? #?????????## | | #????????????????????? ##??????## ## | | #?????????????????????? ??????# ### | | "##??????????????# ?????? ?????########### | | <" #?????????????## ??????# ?????## ####### | +----------------------------------------------------+ Best States ------------- Heat Dissipation 25 Energy Generation 15 Energy Capacity 250 Matter Stores 300 Matter Capacity 300 Sight Range 16 Terrain Scan Density 10 Core Shielding 20 Evasion (%) 40 Recoil Reduction 2 Item Schematics ----------------- None Robot Schematics ------------------ M-13 Machinist | -10/Materials | Hacked Fabricated ------------ Nothing Repaired ---------- Nothing Studied --------- None Alien Tech Used ----------------- None Achievements -------------- None Challenges ------------ None Game ------ Seed PiercingIntegratedConstruct Manual? 0 Play Time 00:15:29 Cumulative 861.0 hours Start 2026.04.20 @ 21:11:32 End 2026.04.20 @ 21:21:49 Sessions 1 Manual Loads 0 Difficulty Rogue Special Mode None Game No. 428 Rogue 428 Adventurer 0 Explorer 0 Win Type - Total 74 Types 48/5/7/4/1/1/3/3/1/1 Lore% 93 Gallery% 83 Achievement% 75 Wizard Run 0 Options --------- Layout 0 ASCII 0 Keyboard 1 Movement Numpad Keybinds 0 Fullscreen 2 Font 18/SmallcapsGlow Map View 76x50 Zoom Use 0% Tactical HUD 1 Map Filters NONE Filters NONE Steam 1 RUN: aeb91191-b750-42e1-b6d0-cb50c3abbd7f